bitfinex/quotes_BTCUSD_20241123
["timestamp","ask_amount","ask_price","bid_price","bid_amount"]
[1732345545732,0.18157463,98253.0,98173.0,0.023]
[1732345545733,0.1,98236.0,98173.0,0.023]
[1732345545947,0.1,98236.0,98174.0,0.05038382]
[1732345546791,0.1,98236.0,98175.0,0.00370098]
[1732345547395,0.1,98236.0,98176.0,0.05069449]
[1732345547853,0.1,98236.0,98177.0,0.0026829]
[1732345548750,0.1,98236.0,98179.0,0.1256]
[1732345548969,0.1,98236.0,98181.0,0.0792]
[1732345549172,0.1,98236.0,98182.0,0.023]
[1732345549409,0.1,98236.0,98187.0,0.0464]
[1732345549631,0.1,98236.0,98189.0,0.0464]
[1732345549842,0.1,98236.0,98194.0,0.1256]
[1732345550066,0.1,98236.0,98201.0,0.0792]
[1732345550296,0.05318764,98235.0,98172.0,0.0464]
[1732345551412,0.0821,98234.0,98173.0,0.05099766]
[1732345551646,0.0821,98234.0,98174.0,0.0464]
[1732345552088,0.07220001,98234.0,98177.0,0.05067546]
[1732345552310,0.05740002,98234.0,98181.0,0.0792]
[1732345552538,0.05740002,98234.0,98186.0,0.0792]
[1732345552767,0.04460003,98234.0,98187.0,0.04741809]
[1732345552988,0.02680003,98234.0,98226.0,0.0025]
[1732345553414,0.00900003,98234.0,98226.0,0.0025]
[1732345553630,0.05318764,98235.0,98226.0,0.0025]
[1732345553881,0.0352359,98234.0,98226.0,0.0025]
[1732345554339,0.0257759,98234.0,98226.0,0.0025]
[1732345554562,0.00946,98234.0,98226.0,0.0025]
[1732345554980,0.00336,98234.0,98226.0,0.0025]
[1732345555869,0.0478,98233.0,98226.0,0.0025]
[1732345556521,0.0478,98233.0,98226.0,0.04414583]
[1732345556744,0.04270817,98233.0,98226.0,0.0025]
[1732345557613,0.08476,98234.0,98226.0,0.0025]
[1732345559820,0.0455,98233.0,98226.0,0.0025]
[1732345560677,0.1455,98233.0,98226.0,0.0025]
[1732345562476,0.00336,98228.0,98226.0,0.0025]
[1732345562685,0.23556,98227.0,98226.0,0.0025]
[1732345563980,0.23439469,98227.0,98226.0,0.0025]
[1732345566712,0.25739469,98227.0,98226.0,0.0025]
[1732345568196,0.39150822,98227.0,98226.0,0.0025]
[1732345577445,0.39150822,98227.0,98226.0,0.0042202]
[1732345577708,0.31990883,98227.0,98226.0,0.04514442]
[1732345578141,0.14140503,98227.0,98226.0,0.0042202]
[1732345578551,0.13762378,98227.0,98226.0,0.0042202]
[1732345581104,0.26022378,98227.0,98226.0,0.0449758]
[1732345581685,0.26022378,98227.0,98226.0,0.0042202]
[1732345583927,0.25253208,98227.0,98226.0,0.0042202]
[1732345584135,0.22085473,98227.0,98226.0,0.0042202]
[1732345584585,0.2138059,98227.0,98226.0,0.0042202]
[1732345585521,0.1226,98227.0,98226.0,0.0042202]
[1732345585730,0.2138059,98227.0,98226.0,0.0042202]
[1732345586766,0.2138059,98227.0,98226.0,0.04539927]
[1732345586982,0.2138059,98227.0,98226.0,0.0042202]
[1732345587641,0.2138059,98227.0,98226.0,0.04596987]
[1732345588072,0.2138059,98227.0,98226.0,0.0042202]
[1732345589856,0.0912059,98208.0,98157.0,0.05045156]
[1732345590066,0.0912059,98208.0,98159.0,0.05081938]
[1732345590298,0.0912059,98208.0,98160.0,0.00101836]
[1732345590569,0.0912059,98208.0,98161.0,0.05098341]
[1732345590802,0.08296613,98208.0,98162.0,0.00101836]
[1732345591010,0.08296613,98208.0,98163.0,0.05076356]
[1732345591224,0.06865707,98208.0,98164.0,0.00101836]
[1732345591432,0.06865707,98208.0,98165.0,0.0502529]
[1732345591640,0.06244686,98208.0,98166.0,0.02401836]
[1732345591881,0.06244686,98208.0,98168.0,0.023]
[1732345592098,0.06244686,98208.0,98170.0,0.023]
[1732345592308,0.06244686,98208.0,98171.0,0.00101836]
[1732345592929,0.06244686,98208.0,98172.0,0.0752]
[1732345593145,0.06244686,98208.0,98176.0,0.0752]
[1732345593364,0.06244686,98208.0,98178.0,0.12541629]
[1732345593579,0.06244686,98208.0,98181.0,0.0467]
[1732345593806,0.06244686,98208.0,98178.0,0.05021629]
[1732345593807,0.06244686,98208.0,98184.0,0.0467]
[1732345594028,0.06244686,98208.0,98188.0,0.0752]
[1732345594237,0.05780109,98208.0,98189.0,0.0467]
[1732345594461,0.05780109,98208.0,98191.0,0.0467]
[1732345594647,0.05323624,98208.0,98191.0,0.05038847]
[1732345594852,0.05323624,98208.0,98193.0,0.0467]
[1732345595297,0.05323624,98208.0,98195.0,0.0467]
[1732345595475,0.05323624,98208.0,98196.0,0.0467]
[1732345595862,0.05323624,98208.0,98197.0,0.05024594]
[1732345596678,0.05323624,98208.0,98199.0,0.0504322]
[1732345596837,0.04858001,98208.0,98199.0,0.0504322]
[1732345601444,0.07593,98225.0,98203.0,0.0483]
[1732345601653,0.07593,98225.0,98204.0,0.0507204]
[1732345602058,0.0008603,98208.0,98204.0,0.0507204]
[1732345603469,0.0008603,98208.0,98151.0,0.05039023]
[1732345603671,0.0008603,98208.0,98152.0,0.00101835]
[1732345604272,0.0008603,98208.0,98153.0,0.05051846]
[1732345604491,0.0008603,98208.0,98154.0,0.00101835]
[1732345604912,0.0008603,98208.0,98155.0,0.050363]
[1732345605126,0.0008603,98208.0,98156.0,0.00101835]
[1732345605749,0.0008603,98208.0,98156.0,0.02401835]
[1732345606621,0.0008603,98208.0,98159.0,0.023]
[1732345606845,0.0008603,98208.0,98162.0,0.0469]
[1732345606988,0.0008603,98208.0,98164.0,0.126]
[1732345607206,0.0008603,98208.0,98167.0,0.05003486]
[1732345607412,0.0008603,98208.0,98169.0,0.0791]
[1732345607624,0.0008603,98208.0,98173.0,0.0469]
[1732345607842,0.0008603,98208.0,98176.0,0.0469]
[1732345608048,0.0008603,98208.0,98179.0,0.126]
[1732345608275,0.0008603,98208.0,98181.0,0.126]
[1732345608479,0.0008603,98208.0,98183.0,0.126]
[1732345608676,0.0008603,98208.0,98185.0,0.0469]
[1732345608875,0.0008603,98208.0,98187.0,0.0469]
[1732345609083,0.0008603,98208.0,98188.0,0.0469]
[1732345610352,0.0008603,98208.0,98189.0,0.05055974]
[1732345610769,0.00101835,98207.0,98189.0,0.05055974]
[1732345612950,0.0774,98206.0,98189.0,0.05055974]
[1732345613202,0.00101835,98205.0,98189.0,0.05055974]
[1732345617503,0.00101835,98205.0,98189.0,0.09227187]
[1732345620063,0.00101835,98205.0,98196.0,0.05086547]
[1732345621868,0.0774,98206.0,98196.0,0.05086547]
[1732345623113,0.00101835,98205.0,98196.0,0.05086547]
[1732345623271,0.0751,98203.0,98196.0,0.05086547]
[1732345623471,0.00101835,98202.0,98196.0,0.05086547]
[1732345625737,0.0751,98203.0,98196.0,0.05086547]
[1732345625921,0.00074508,98202.0,98196.0,0.05086547]
[1732345629495,0.0454,98200.0,98196.0,0.05086547]
[1732345629717,0.07584508,98199.0,98196.0,0.05086547]
[1732345629955,0.0454,98198.0,98196.0,0.05086547]
[1732345630171,0.00074508,98197.0,98196.0,0.05086547]
[1732345630383,0.0008607,98205.0,98196.0,0.05086547]
[1732345631845,0.0008607,98205.0,98196.0,0.09148108]
[1732345632682,0.00074508,98204.0,98196.0,0.09148108]
[1732345633094,0.0454,98202.0,98196.0,0.09148108]
[1732345633317,0.00074508,98201.0,98196.0,0.09148108]
[1732345635778,0.0454,98202.0,98196.0,0.09148108]
[1732345636489,0.0454,98202.0,98171.0,0.05068734]
[1732345636714,0.0454,98202.0,98173.0,0.05050957]
[1732345636934,0.0454,98202.0,98174.0,0.00101845]
[1732345637149,0.03550001,98202.0,98176.0,0.0477]
[1732345637375,0.03550001,98202.0,98177.0,0.05112895]
[1732345637591,0.02560002,98202.0,98178.0,0.0477]
[1732345637851,0.02560002,98202.0,98179.0,0.05056702]
[1732345638743,0.03734846,98201.0,98156.0,0.05069978]
[1732345638966,0.03734846,98201.0,98159.0,0.0477]
[1732345639189,0.01773998,98201.0,98162.0,0.0477]
[1732345639404,0.0814,98200.0,98164.0,0.0477]
[1732345639632,0.06467848,98200.0,98167.0,0.0807]
[1732345639839,0.06467848,98200.0,98170.0,0.0477]
[1732345640075,0.06467848,98200.0,98172.0,0.0477]
[1732345640253,0.01672153,98201.0,98175.0,0.05003317]
[1732345640254,1e-08,98201.0,98175.0,0.05003317]
[1732345640513,1e-08,98201.0,98177.0,0.05062652]
[1732345640731,1e-08,98201.0,98177.0,0.05164497]
[1732345642214,1e-08,98201.0,98178.0,0.00101845]
[1732345642848,1e-08,98201.0,98179.0,0.0482]
[1732345643265,0.1289,98200.0,98179.0,0.0482]
[1732345643934,0.1289,98200.0,98180.0,0.05027905]
[1732345646971,1e-08,98201.0,98182.0,0.05057638]
[1732345647395,0.5696887,98224.0,98182.0,0.05057638]
[1732345647614,0.023,98222.0,98182.0,0.05057638]
[1732345647835,0.023,98222.0,98183.0,0.0482]
[1732345648473,0.023,98222.0,98184.0,0.05046706]
[1732345649840,0.0807,98221.0,98184.0,0.05046706]
[1732345650073,0.0807,98219.0,98161.0,0.05033369]
[1732345650306,0.61274602,98218.0,98163.0,0.0505161]
[1732345650561,0.0482,98215.0,98164.0,0.00101845]
[1732345650775,0.0482,98213.0,98164.0,0.00101845]
[1732345651001,0.1289,98211.0,98165.0,0.05057852]
[1732345651229,0.0482,98208.0,98167.0,0.05027173]
[1732345651457,0.5466887,98218.0,98160.0,0.0408187]
[1732345651458,0.0482,98206.0,98161.0,0.05072445]
[1732345651755,0.00101845,98205.0,98163.0,0.0505161]
[1732345651972,0.00101845,98205.0,98165.0,0.05057852]
[1732345652199,0.00101845,98205.0,98167.0,0.05027173]
[1732345652429,0.00101845,98205.0,98168.0,0.00101845]
[1732345652858,0.00101845,98205.0,98169.0,0.05027249]
[1732345653155,0.0482,98204.0,98172.0,0.0482]
[1732345653362,0.00101845,98203.0,98183.0,0.0017206]
[1732345654931,0.00101845,98203.0,98184.0,0.05018087]
[1732345656934,0.0482,98204.0,98184.0,0.05018087]
[1732345656935,0.04158683,98204.0,98184.0,0.05018087]
[1732345659663,0.00029685,98204.0,98184.0,0.05018087]
[1732345659881,0.00029685,98204.0,98184.0,0.09198221]
[1732345660790,0.00023185,98204.0,98184.0,0.09198221]
[1732345661667,0.0809,98203.0,98184.0,0.09198221]
[1732345662101,0.0809,98203.0,98184.0,0.05018087]
[1732345666137,0.0809,98203.0,98185.0,0.0462]
[1732345666347,0.0809,98203.0,98194.0,0.05045399]
[1732345667159,0.02826471,98203.0,98194.0,0.05045399]
[1732345669868,0.02774016,98203.0,98194.0,0.05045399]
[1732345670269,0.0008607,98205.0,98194.0,0.05045399]
[1732345671290,0.0008607,98205.0,98194.0,0.09111646]
[1732345672390,0.25536979,98232.0,98198.0,0.05003798]
[1732345672612,0.0008601,98233.0,98202.0,0.05063463]
[1732345672835,0.0008601,98233.0,98193.0,0.50589735]
[1732345672836,0.0008601,98233.0,98204.0,0.05026443]
[1732345673038,0.0809,98232.0,98207.0,0.0462]
[1732345674849,0.0809,98232.0,98209.0,0.0462]
[1732345676867,0.0459,98231.0,98209.0,0.0462]
[1732345678599,0.0459,98231.0,98210.0,0.05092549]
[1732345681886,0.0459,98231.0,98211.0,0.02008127]
[1732345682313,0.0459,98231.0,98212.0,0.05096331]
[1732345682786,0.0459,98231.0,98210.0,0.09164547]
[1732345683236,0.0459,98231.0,98210.0,0.05092549]
[1732345685313,0.0459,98231.0,98179.0,0.53739441]
[1732345685518,0.0459,98231.0,98171.0,0.023]
[1732345685722,0.081,98230.0,98174.0,0.05034509]
[1732345686144,0.081,98230.0,98172.0,0.05040725]
[1732345686799,0.081,98230.0,98173.0,0.023]
[1732345687868,0.081,98230.0,98174.0,0.05034509]
[1732345688494,0.081,98230.0,98175.0,0.1243]
[1732345688697,0.081,98230.0,98177.0,0.0485]
[1732345688909,0.081,98230.0,98179.0,0.0485]
[1732345689130,0.081,98228.0,98183.0,0.0485]
[1732345689341,0.081,98228.0,98186.0,0.05059766]
[1732345689556,0.081,98228.0,98187.0,0.0485]
[1732345690306,0.081,98228.0,98185.0,0.05006309]
[1732345690513,0.0008601,98233.0,98187.0,0.05086239]
[1732345690514,0.081,98226.0,98187.0,0.05086239]
[1732345690723,0.081,98220.0,98187.0,0.05086239]
[1732345691597,0.0008601,98233.0,98187.0,0.05086239]
[1732345691598,0.0461,98219.0,98187.0,0.05086239]
[1732345691817,0.081,98218.0,98187.0,0.09221029]
[1732345692234,0.081,98218.0,98188.0,0.0017202]
[1732345692453,0.081,98218.0,98189.0,0.05092721]
[1732345693231,0.0461,98226.0,98191.0,0.05037833]
[1732345693454,0.0461,98226.0,98193.0,0.0485]
[1732345693673,0.0461,98226.0,98195.0,0.0485]
[1732345694767,0.0461,98226.0,98196.0,0.05090797]
[1732345696259,0.081,98225.0,98196.0,0.05090797]
[1732345696925,0.081,98225.0,98197.0,0.06631862]
[1732345697138,0.081,98225.0,98198.0,0.0809]
[1732345697360,0.081,98225.0,98196.0,0.05090797]
[1732345697626,0.081,98225.0,98189.0,0.0506354]
[1732345697830,0.081,98225.0,98190.0,0.00101828]
[1732345698040,0.081,98225.0,98191.0,0.05026441]
[1732345698246,0.081,98225.0,98193.0,0.05000861]
[1732345699321,0.081,98225.0,98190.0,0.05018382]
[1732345699751,0.081,98225.0,98189.0,0.0506354]
[1732345700330,0.081,98225.0,98190.0,0.1276]
[1732345700536,0.081,98225.0,98191.0,0.05026441]
[1732345702561,0.1272,98224.0,98191.0,0.05026441]
[1732345702960,0.1272,98224.0,98192.0,0.00101828]
[1732345703164,0.1272,98224.0,98193.0,0.05000861]
[1732345703531,0.1272,98224.0,98194.0,0.00101828]
[1732345704138,0.1272,98224.0,98195.0,0.05076854]
[1732345704703,0.1272,98224.0,98160.0,0.0017214]
[1732345704704,0.1272,98221.0,98158.0,0.050613]
[1732345704929,0.0805,98218.0,98160.0,0.05020475]
[1732345705362,0.00101828,98217.0,98161.0,0.00101828]
[1732345705568,0.00101828,98217.0,98189.0,0.0017208]
[1732345706188,0.1272,98216.0,98189.0,0.0017208]
[1732345706301,0.00101828,98215.0,98189.0,0.0017208]
[1732345707160,0.00101828,98215.0,98190.0,0.05071194]
[1732345707374,0.00101828,98215.0,98191.0,0.00101828]
[1732345708459,0.00101828,98215.0,98192.0,0.05072746]
[1732345710046,0.00101828,98215.0,98193.0,0.00101828]
[1732345710277,0.0805,98214.0,98193.0,0.00101828]
[1732345710489,0.00101828,98213.0,98194.0,0.05052721]
[1732345710692,0.0467,98212.0,98194.0,0.05052721]
[1732345710876,0.00101828,98211.0,98194.0,0.05154548]
[1732345711116,0.00101828,98211.0,98162.0,0.05072395]
[1732345711335,0.1272,98210.0,98163.0,0.023]
[1732345711574,0.00127284,98209.0,98164.0,0.0503069]
[1732345712017,0.0805,98208.0,98164.0,0.0503069]
[1732345712196,0.00465414,98207.0,98169.0,0.05071002]
[1732345712439,0.00465414,98207.0,98171.0,0.05057379]
[1732345712666,0.00465414,98208.0,98174.0,0.0493]
[1732345712956,0.00465414,98208.0,98176.0,0.0493]
[1732345713199,0.00465414,98208.0,98177.0,0.05012193]
[1732345715190,0.00465414,98208.0,98178.0,0.00050914]
[1732345715402,0.00465414,98208.0,98172.0,0.0799]
[1732345715403,0.1272,98205.0,98156.0,0.07390909]
[1732345715614,0.0467,98203.0,98198.0,0.50589735]
[1732345715822,0.023,98224.0,98198.0,0.50589735]
[1732345716022,0.00127284,98223.0,98199.0,0.05002444]
[1732345716324,0.00127284,98222.0,98199.0,0.05002444]
[1732345716524,0.00127284,98223.0,98199.0,0.05002444]
[1732345717826,0.00213324,98223.0,98199.0,0.05002444]
[1732345718643,0.0477,98221.0,98199.0,0.05002444]
[1732345718846,0.076,98214.0,98199.0,0.05002444]
[1732345719049,0.00127284,98220.0,98199.0,0.05002444]
[1732345719050,0.1237,98212.0,98199.0,0.05002444]
[1732345719229,0.00127284,98211.0,98199.0,0.05002444]
[1732345720659,0.076,98209.0,98199.0,0.05002444]
[1732345721228,0.07158981,98209.0,98199.0,0.05002444]
[1732345723125,0.07158981,98209.0,98199.0,0.09033063]
[1732345723330,0.06815737,98209.0,98199.0,0.09033063]
[1732345726500,0.02717756,98209.0,98199.0,0.09033063]
[1732345730253,0.046,98208.0,98199.0,0.09033063]
[1732345730894,0.0008604,98223.0,98199.0,0.09033063]
[1732345730895,0.046,98206.0,98199.0,0.09033063]
[1732345731118,0.0765,98202.0,98199.0,0.09205143]
[1732345731340,0.046,98201.0,98199.0,0.09205143]
[1732345732189,0.046,98201.0,98199.0,0.05174524]
[1732345734746,0.046,98201.0,98189.0,0.01798373]
[1732345734747,0.046,98201.0,98173.0,0.05033705]
[1732345734955,0.046,98201.0,98171.0,0.05064657]
[1732345735864,0.0456,98199.0,98171.0,0.05064657]
[1732345736217,0.00127301,98198.0,98171.0,0.05064657]
[1732345736426,0.00127301,98198.0,98171.0,0.09854657]
[1732345737257,0.00127301,98198.0,98171.0,0.14061782]
[1732345737464,0.0765,98202.0,98171.0,0.14061782]
[1732345738450,0.00127301,98201.0,98171.0,0.14061782]
[1732345739491,0.049,98200.0,98171.0,0.14061782]
[1732345739774,0.00127301,98199.0,98171.0,0.14061782]
[1732345740554,0.049,98198.0,98171.0,0.14061782]
[1732345741527,0.049,98198.0,98172.0,0.00101841]
[1732345741738,0.049,98198.0,98173.0,0.05033705]
[1732345741958,0.049,98198.0,98174.0,0.00101841]
[1732345742173,0.049,98198.0,98175.0,0.05008215]
[1732345742372,0.1,98202.0,98146.0,0.0759]
[1732345742574,0.1,98202.0,98177.0,0.05078641]
[1732345742707,0.1,98202.0,98179.0,0.050564]
[1732345742912,0.1,98202.0,98181.0,0.05055835]
[1732345743140,0.1,98202.0,98182.0,0.00101841]
[1732345744156,0.1,98202.0,98183.0,0.05085589]
[1732345745373,0.0822,98201.0,98183.0,0.05085589]
[1732345745558,0.0493,98200.0,98183.0,0.05085589]
[1732345747392,0.0493,98200.0,98183.0,0.09205872]
[1732345749829,0.10101841,98199.0,98138.0,0.023]
[1732345750028,0.0493,98198.0,98139.0,0.05107075]
[1732345750228,0.02274571,98201.0,98141.0,0.0487]
[1732345750455,0.02274571,98201.0,98146.0,0.0759]
[1732345750456,0.00423632,98201.0,98146.0,0.0759]
[1732345750658,0.00693055,98202.0,98153.0,0.1246]
[1732345750965,0.00693055,98202.0,98138.0,0.11606945]
[1732345750966,0.00693055,98202.0,98157.0,0.0759]
[1732345751129,0.3065,98242.0,98158.0,0.04971841]
[1732345751305,0.3065,98242.0,98160.0,0.1246]
[1732345751509,0.3065,98242.0,98162.0,0.0759]
[1732345751709,0.3065,98242.0,98164.0,0.1246]
[1732345752054,0.3065,98242.0,98166.0,0.1246]
[1732345752278,0.3065,98242.0,98169.0,0.0487]
[1732345752483,0.3065,98242.0,98172.0,0.0487]
[1732345752607,0.3065,98242.0,98175.0,0.0759]
[1732345752814,0.3065,98242.0,98176.0,0.00101841]
[1732345753029,0.1008606,98236.0,98176.0,0.00101841]
[1732345753237,0.023,98207.0,98176.0,0.00101841]
[1732345753478,0.023,98205.0,98176.0,0.00101841]
[1732345753713,0.023,98205.0,98177.0,0.0487]
[1732345753925,0.023,98205.0,98178.0,0.00101841]
[1732345754337,0.023,98205.0,98179.0,0.05062706]
[1732345754544,0.023,98205.0,98180.0,0.00101841]
[1732345755378,0.023,98205.0,98181.0,0.0759]
[1732345755578,0.023,98205.0,98182.0,0.00101841]
[1732345756110,0.023,98205.0,98183.0,0.0505886]
[1732345758041,0.023,98203.0,98183.0,0.0505886]
[1732345759763,0.04991841,98202.0,98153.0,0.05050189]
[1732345759977,0.04991841,98202.0,98154.0,0.00101841]
[1732345760419,0.04991841,98202.0,98155.0,0.05086496]
[1732345760617,0.04991841,98202.0,98132.0,0.86127206]
[1732345760618,0.04991841,98202.0,98157.0,0.05017052]
[1732345760840,0.04991841,98202.0,98159.0,0.05041181]
[1732345761219,0.04991841,98202.0,98160.0,0.00101841]
[1732345761413,0.04991841,98202.0,98161.0,0.05034799]
[1732345761521,0.04991841,98202.0,98162.0,0.00101841]
[1732345761726,0.04991841,98202.0,98163.0,0.0509593]
[1732345761935,0.04991841,98202.0,98164.0,0.00101841]
[1732345762145,0.04991841,98202.0,98165.0,0.0508627]
[1732345762370,0.04991841,98202.0,98167.0,0.05051142]
[1732345762605,0.04991841,98202.0,98169.0,0.05056204]
[1732345762825,0.0489,98202.0,98176.0,0.1101]
[1732345763037,0.0489,98202.0,98178.0,0.12596706]
[1732345763243,0.0489,98202.0,98180.0,0.05072535]
[1732345763453,0.0489,98202.0,98182.0,0.0752]
[1732345763675,0.0489,98202.0,98183.0,0.00101831]
[1732345764118,0.0489,98202.0,98184.0,0.05057765]
[1732345764319,0.0489,98202.0,98185.0,0.00101827]
[1732345764525,0.0489,98202.0,98184.0,0.05057765]
[1732345764526,0.0489,98202.0,98192.0,0.50589735]
[1732345764741,0.0489,98202.0,98193.0,0.00101828]
[1732345764951,0.0489,98202.0,98194.0,0.05094836]
[1732345765159,0.0489,98202.0,98194.0,0.05196664]
[1732345769454,0.0008605,98205.0,98196.0,0.05048642]
[1732345769670,0.0008605,98205.0,98197.0,0.0010182]
[1732345769872,0.0008605,98205.0,98198.0,0.00101819]
[1732345770107,0.0008605,98205.0,98199.0,0.00101819]
[1732345770333,0.0008605,98205.0,98197.0,0.00101819]
[1732345770770,0.0008605,98205.0,98198.0,0.05023823]
[1732345770971,0.0008605,98205.0,98199.0,0.00101819]
[1732345771637,0.0008605,98205.0,98200.0,0.05023095]
[1732345771855,0.0008605,98205.0,98201.0,0.00101818]
[1732345772075,0.09099106,98296.0,98202.0,0.00101818]
[1732345772295,0.023,98232.0,98202.0,0.05078591]
[1732345772505,0.023,98232.0,98203.0,0.00101814]
[1732345773152,0.023,98232.0,98204.0,0.05057951]
[1732345773358,0.023,98232.0,98205.0,0.00101814]
[1732345775179,0.1238,98229.0,98205.0,0.00101814]
[1732345775390,0.0463,98228.0,98206.0,0.05079956]
[1732345775616,0.0463,98228.0,98208.0,0.05019179]
[1732345775832,0.0463,98228.0,98206.0,0.05079956]
[1732345776036,0.0463,98228.0,98208.0,0.05019179]
[1732345776241,0.0463,98228.0,98208.0,0.05120993]
[1732345776453,0.0463,98228.0,98208.0,0.05019179]
[1732345777973,0.00101814,98227.0,98181.0,0.05020155]
[1732345778208,0.0462,98226.0,98175.0,0.05044602]
[1732345778434,0.0462,98224.0,98176.0,0.00101813]
[1732345778651,0.00101814,98223.0,98177.0,0.0468]
[1732345778867,0.0755,98225.0,98179.0,0.05096715]
[1732345779073,0.0755,98225.0,98181.0,0.0468]
[1732345779074,0.00101814,98224.0,98181.0,0.0468]
[1732345779303,0.00101814,98224.0,98174.0,0.29729812]
[1732345779304,0.02631814,98225.0,98186.0,0.05081536]
[1732345779533,0.02631814,98225.0,98191.0,0.0788]
[1732345779777,0.02631814,98225.0,98187.0,0.00101813]
[1732345779778,0.01651814,98225.0,98194.0,0.12906581]
[1732345780610,0.00661815,98225.0,98194.0,0.12906581]
[1732345781277,0.00661815,98225.0,98195.0,0.00101813]
[1732345781504,0.00661815,98225.0,98196.0,0.05002935]
[1732345781779,0.0495,98224.0,98197.0,0.00101813]
[1732345783461,0.0495,98224.0,98198.0,0.05060832]
[1732345783665,0.0495,98224.0,98199.0,0.00101813]
[1732345785555,0.0495,98224.0,98200.0,0.0807]
[1732345785759,0.0495,98224.0,98201.0,0.00101814]
[1732345787248,0.0495,98224.0,98202.0,0.05030836]
[1732345788113,0.0495,98224.0,98201.0,0.05092692]
[1732345791539,0.0495,98224.0,98202.0,0.00101814]
[1732345793016,0.0495,98224.0,98203.0,0.05020837]
[1732345793283,0.0495,98224.0,98204.0,0.00101814]
[1732345795091,0.0495,98224.0,98205.0,0.05091271]
[1732345795295,0.0495,98224.0,98206.0,0.00101814]
[1732345796170,1.48894273,98225.0,98206.0,0.02401814]
[1732345796395,1.48501606,98225.0,98206.0,0.02401814]
[1732345796818,1.48587626,98225.0,98206.0,0.02401814]
[1732345798144,1.48587626,98225.0,98208.0,0.023]
[1732345798369,1.46363626,98225.0,98208.0,0.00101814]
[1732345798606,1.46363626,98225.0,98211.0,0.05027485]
[1732345798815,1.46363626,98225.0,98210.0,0.023]
[1732345798816,1.44139626,98225.0,98210.0,0.023]
[1732345799027,1.44139626,98225.0,98212.0,0.07350854]
[1732345799236,0.1218,98224.0,98212.0,0.07350854]
[1732345801259,0.11292158,98224.0,98212.0,0.07350854]
[1732345801686,0.10638151,98224.0,98212.0,0.07350854]
[1732345801898,0.04981814,98223.0,98199.0,0.023]
[1732345802123,0.04981814,98223.0,98200.0,0.05168669]
[1732345804058,0.04981814,98223.0,98200.0,0.09194824]
[1732345804494,0.0488,98223.0,98201.0,0.023]
[1732345804729,0.0488,98221.0,98204.0,0.023]
[1732345804939,0.00071319,98220.0,98206.0,0.023]
[1732345805143,0.00071319,98220.0,98204.0,0.023]
[1732345805144,0.0396132,98221.0,98207.0,0.00101814]
[1732345805359,0.0396132,98221.0,98208.0,0.05083958]
[1732345805580,0.06088151,98224.0,98210.0,0.05034821]
[1732345805765,0.06088151,98224.0,98207.0,0.023]
[1732345805766,0.06088151,98224.0,98209.0,0.023]
[1732345806686,0.06088151,98224.0,98211.0,0.023]
[1732345808478,0.0488,98223.0,98211.0,0.023]
[1732345808692,0.0488,98223.0,98211.0,0.06326566]
[1732345808871,0.0488,98223.0,98211.0,0.023]
[1732345809022,0.0488,98223.0,98213.0,0.023]
[1732345809236,0.0488,98223.0,98211.0,0.023]
[1732345810091,0.03686534,98223.0,98211.0,0.023]
[1732345810295,0.03686534,98223.0,98212.0,0.05013642]
[1732345810497,0.03412734,98223.0,98212.0,0.05013642]
[1732345810667,0.03412734,98223.0,98213.0,0.023]
[1732345811075,0.03143334,98223.0,98213.0,0.023]
[1732345816254,0.05821091,98224.0,98213.0,0.023]
[1732345817552,0.02871091,98224.0,98213.0,0.023]
[1732345821221,0.02871091,98224.0,98213.0,0.0238603]
[1732345827039,0.02394003,98224.0,98213.0,0.0238603]
[1732345828666,0.02394003,98224.0,98213.0,0.05485065]
[1732345828879,0.0457,98223.0,98213.0,0.0008603]
[1732345829329,0.03904964,98223.0,98213.0,0.0008603]
[1732345829987,0.0787,98222.0,98213.0,0.0008603]
[1732345834026,0.0457,98221.0,98213.0,0.0008603]
[1732345842519,0.0457,98221.0,98213.0,0.0413381]
[1732345845349,0.0010182,98220.0,98176.0,0.023]
[1732345845581,0.0010182,98220.0,98177.0,0.05155176]
[1732345845812,0.0010182,98220.0,98178.0,0.023]
[1732345846100,0.0010182,98220.0,98181.0,0.023]
[1732345846306,0.0010182,98220.0,98163.0,0.05003623]
[1732345846307,0.1030182,98220.0,98163.0,0.05003623]
[1732345846722,0.002,98218.0,98163.0,0.05003623]
[1732345846940,0.00127275,98217.0,98163.0,0.05003623]
[1732345847148,0.00127275,98217.0,98164.0,0.01405938]
[1732345848017,0.1,98220.0,98164.0,0.01405938]
[1732345848018,0.002,98218.0,98164.0,0.01405938]
[1732345848249,0.00127275,98217.0,98164.0,0.01405938]
[1732345848454,0.00127275,98217.0,98167.0,0.125]
[1732345848673,0.00127275,98217.0,98169.0,0.023]
[1732345848884,0.00127275,98217.0,98173.0,0.05093264]
[1732345849103,0.00127275,98217.0,98173.0,0.0458]
[1732345849306,0.00127275,98217.0,98174.0,0.05066367]
[1732345849531,0.0765,98216.0,98178.0,0.125]
[1732345849754,0.00127275,98215.0,98175.0,0.125]
[1732345849977,0.00127275,98215.0,98176.0,0.125]
[1732345850189,0.00127275,98215.0,98174.0,0.05066367]
[1732345850397,0.00127275,98215.0,98178.0,0.0458]
[1732345850601,0.0461,98214.0,98184.0,0.125]
[1732345850830,0.0461,98214.0,98187.0,0.0792]
[1732345851091,0.0461,98214.0,98188.0,0.04630911]
[1732345851981,0.0461,98214.0,98189.0,0.0458]
[1732345852210,0.0461,98214.0,98190.0,0.00050911]
[1732345852675,0.0461,98214.0,98192.0,0.05087036]
[1732345852900,0.0461,98214.0,98193.0,0.00050911]
[1732345855770,0.0461,98214.0,98194.0,0.050633]
[1732345855991,0.0461,98214.0,98195.0,0.00050911]
[1732345856471,0.0461,98214.0,98196.0,0.05063206]
[1732345856682,0.0461,98214.0,98197.0,0.00050911]
[1732345858707,0.0461,98214.0,98190.0,0.05079322]
[1732345860162,0.0461,98214.0,98189.0,0.0501479]
[1732345860977,0.0801,98213.0,98189.0,0.0501479]
[1732345861275,0.0478,98212.0,98189.0,0.0501479]
[1732345861728,0.0478,98212.0,98188.0,0.05031288]
[1732345863338,0.0478,98212.0,98189.0,0.040524]
[1732345863564,0.0478,98212.0,98190.0,0.05066103]
[1732345864456,0.0783,98211.0,98190.0,0.05066103]
[1732345864657,0.0497,98210.0,98190.0,0.05066103]